bitfinex/quotes_BTCUSD_20251124
["timestamp","ask_amount","ask_price","bid_price","bid_amount"]
[1763944931078,0.11811186,87066.0,87062.0,8.14e-05]
[1763944931856,0.323,87065.0,87062.0,8.14e-05]
[1763944932880,0.33448567,87065.0,87062.0,8.14e-05]
[1763944933095,0.323,87063.0,87062.0,8.14e-05]
[1763944933305,0.34435098,87063.0,87062.0,8.14e-05]
[1763944934066,2.34435098,87063.0,87062.0,8.14e-05]
[1763944935101,2.59155098,87063.0,87062.0,8.14e-05]
[1763944935661,2.67772982,87063.0,87062.0,8.14e-05]
[1763944936212,2.59155098,87063.0,87062.0,8.14e-05]
[1763944936583,0.323,87052.0,87024.0,0.03334]
[1763944936785,2.70966284,87051.0,87050.0,0.00079479]
[1763944937198,2.70966284,87051.0,87050.0,0.00104662]
[1763944937473,2.70966284,87051.0,87018.0,0.03334]
[1763944937474,0.01148923,87038.0,87018.0,0.03334]
[1763944937688,0.33449108,87024.0,87013.0,0.00973242]
[1763944937897,0.33449108,87024.0,86990.0,0.0004]
[1763944937898,0.01149147,87021.0,87003.0,0.03334]
[1763944938111,0.01149134,87022.0,87001.0,0.00973242]
[1763944938112,0.323,87009.0,87001.0,0.00973242]
[1763944938733,0.01149332,87007.0,86996.0,0.00973242]
[1763944938942,0.02139515,87006.0,86996.0,0.00973242]
[1763944939141,0.02139515,87006.0,86990.0,0.0004]
[1763944939142,0.02139515,87005.0,86998.0,0.00973242]
[1763944939434,0.02139834,87004.0,86998.0,0.00973242]
[1763944939655,0.00039435,87006.0,86994.0,0.00973242]
[1763944939852,0.02139834,87005.0,86990.0,0.0004]
[1763944940063,0.02139834,87004.0,87002.0,0.00973242]
[1763944940269,0.00039435,87006.0,86990.0,0.0004]
[1763944940476,0.323,86999.0,86994.0,0.00973242]
[1763944940688,0.323,86999.0,86990.0,0.0004]
[1763944940689,0.01149451,86998.0,86990.0,0.0004]
[1763944940907,0.01149504,86994.0,86990.0,0.0004]
[1763944941110,0.55290884,86991.0,86990.0,0.0004]
[1763944941336,2.5743017,86991.0,86990.0,0.0004]
[1763944941549,0.323,86972.0,86960.0,0.0004]
[1763944941745,0.02139286,86971.0,86970.0,0.00973242]
[1763944941968,0.323,86979.0,86975.0,0.00973242]
[1763944942388,0.323,86979.0,86978.0,0.00973242]
[1763944942820,0.00039411,86979.0,86978.0,0.00973242]
[1763944943023,0.00039411,86979.0,86968.0,0.00973242]
[1763944943232,0.323,86977.0,86968.0,0.00973242]
[1763944943465,0.323,86977.0,86967.0,0.00973242]
[1763944943665,0.48866689,86978.0,86967.0,0.00973242]
[1763944943875,2.0,86977.0,86961.0,0.00973242]
[1763944944077,0.48866689,86970.0,86961.0,0.00973242]
[1763944945574,0.5001651,86970.0,86961.0,0.00973242]
[1763944945777,0.11811186,86968.0,86960.0,0.0004]
[1763944946113,0.323,86969.0,86968.0,0.00973242]
[1763944947075,0.24138235,86999.0,86978.0,0.00973242]
[1763944947076,0.74138469,86999.0,86978.0,0.00973242]
[1763944947271,0.323,86989.0,86978.0,0.00973242]
[1763944947640,0.3344957,86989.0,86978.0,0.00973242]
[1763944947912,0.323,86989.0,86978.0,0.00973242]
[1763944948336,0.323,86989.0,86978.0,0.01200088]
[1763944948549,0.5,86998.0,86978.0,0.05645088]
[1763944948753,0.60677875,87000.0,86978.0,0.05645088]
[1763944948883,0.11811186,87000.0,86978.0,0.05645088]
[1763944949083,0.323,86999.0,86978.0,0.05645088]
[1763944949485,0.323,86989.0,86978.0,0.01200088]
[1763944950011,0.48866689,86990.0,86978.0,0.01200088]
[1763944950429,0.50671141,86990.0,86978.0,0.01200088]
[1763944950811,0.01804452,86990.0,86978.0,0.05645088]
[1763944951209,0.01804452,86990.0,86978.0,0.12524088]
[1763944951527,0.323,86997.0,86978.0,0.05645088]
[1763944952679,0.2472,87008.0,86978.0,0.12524088]
[1763944952985,0.323,87007.0,86978.0,0.12524088]
[1763944953330,0.323,86989.0,86978.0,0.01200088]
[1763944953718,0.323,86989.0,86978.0,0.05691088]
[1763944953952,0.2472,87008.0,86978.0,0.12116088]
[1763944954101,0.323,87007.0,86978.0,0.12116088]
[1763944955512,0.48866689,87000.0,86978.0,0.12116088]
[1763944955669,0.11811186,86999.0,86978.0,0.05691088]
[1763944955875,0.48866689,86990.0,86978.0,0.05691088]
[1763944956094,0.01149597,86987.0,86978.0,0.01200088]
[1763944956302,0.323,86988.0,86978.0,0.00226846]
[1763944956520,0.01149623,86985.0,86978.0,0.00226846]
[1763944956744,0.01149649,86983.0,86978.0,0.00226846]
[1763944956958,0.55333467,86979.0,86978.0,0.00226846]
[1763944957131,2.66063756,86979.0,86978.0,0.00226846]
[1763944959037,0.24148294,86963.0,86960.0,0.0004]
[1763944959226,0.11811186,86962.0,86960.0,0.0004]
[1763944960071,0.24148294,86963.0,86960.0,0.0004]
[1763944960286,0.01149874,86966.0,86960.0,0.0004]
[1763944960487,0.33449861,86967.0,86960.0,0.0004]
[1763944960692,0.02134026,86966.0,86960.0,0.0004]
[1763944960896,0.323,86965.0,86960.0,0.0004]
[1763944961053,0.33449861,86967.0,86960.0,0.0004]
[1763944961253,0.323,86965.0,86960.0,0.0004]
[1763944961481,0.02134314,86964.0,86960.0,0.0004]
[1763944962695,0.02134314,86963.0,86960.0,0.0004]
[1763944963926,0.02134314,86962.0,86960.0,0.0004]
[1763944964136,0.02134314,86961.0,86960.0,0.0004]
[1763944964368,2.34434314,86961.0,86960.0,0.0004]
[1763944965722,2.57433129,86961.0,86960.0,0.0004]
[1763944965985,2.34434314,86961.0,86960.0,0.0004]
[1763944966105,2.34434314,86961.0,86960.0,0.00096747]
[1763944966301,2.34434314,86961.0,86960.0,0.01069989]
[1763944966507,2.34434314,86961.0,86960.0,0.00096747]
[1763944966949,0.01150059,86952.0,86939.0,0.00973242]
[1763944967103,0.01150099,86949.0,86939.0,0.00973242]
[1763944967312,0.02134314,86948.0,86939.0,0.00973242]
[1763944967503,0.02134314,86947.0,86939.0,0.00973242]
[1763944967782,0.02134314,86946.0,86939.0,0.00973242]
[1763944967976,0.323,86942.0,86939.0,0.00973242]
[1763944968179,0.02134314,86941.0,86934.0,0.00973242]
[1763944968339,0.02134314,86940.0,86933.0,0.00973242]
[1763944968542,0.02134314,86939.0,86933.0,0.00973242]
[1763944968739,0.02134314,86938.0,86933.0,0.00973242]
[1763944968944,0.02134314,86937.0,86933.0,0.00973242]
[1763944969153,0.02134314,86936.0,86933.0,0.00973242]
[1763944969345,0.02134314,86935.0,86933.0,0.00973242]
[1763944969552,0.02134314,86934.0,86933.0,0.00973242]
[1763944970635,0.03765697,86934.0,86923.0,0.03279]
[1763944970838,0.02134314,86933.0,86927.0,0.00973242]
[1763944971037,2.0,86937.0,86927.0,0.00973242]
[1763944971256,2.0,86936.0,86927.0,0.00973242]
[1763944972437,2.0,86936.0,86927.0,0.03279]
[1763944972616,2.0,86936.0,86935.0,0.00973242]
[1763944973036,2.0,86936.0,86912.0,0.03076]
[1763944973252,0.48866689,86930.0,86923.0,0.00973242]
[1763944973478,0.323,86929.0,86923.0,0.00973242]
[1763944973899,0.323,86929.0,86928.0,0.0010093]
[1763944974553,2.323,86929.0,86928.0,0.0010093]
[1763944978814,2.34105426,86929.0,86928.0,0.0010093]
[1763944979281,2.323,86929.0,86928.0,0.0010093]
[1763944982241,0.01577702,86937.0,86933.0,0.00973242]
[1763944982242,2.0,86936.0,86933.0,0.00973242]
[1763944982482,2.0,86936.0,86934.0,0.00973242]
[1763944982691,2.0,86936.0,86935.0,0.00078845]
[1763944982863,2.323,86936.0,86935.0,0.00078845]
[1763944983092,0.01577702,86937.0,86935.0,0.00078845]
[1763944983298,2.0,86936.0,86934.0,0.00973242]
[1763944983505,0.323,86935.0,86934.0,0.00973242]
[1763944984366,0.01632862,86937.0,86934.0,0.11419242]
[1763944984577,0.01632862,86937.0,86936.0,0.05080242]
[1763944985248,0.00039387,86946.0,86945.0,0.00973242]
[1763944985448,0.02186142,86946.0,86936.0,0.04107]
[1763944985652,0.323,86943.0,86936.0,0.00973242]
[1763944985854,0.323,86941.0,86936.0,0.00973242]
[1763944986064,0.02146755,86940.0,86939.0,0.00973242]
[1763944986273,0.01574065,86943.0,86942.0,0.08256242]
[1763944986477,0.03722091,86943.0,86942.0,0.08256242]
[1763944986684,0.02148026,86943.0,86942.0,0.14595242]
[1763944986909,0.00039387,86946.0,86942.0,0.13622]
[1763944987131,0.00039387,86946.0,86944.0,0.00973242]
[1763944987132,0.02148118,86945.0,86944.0,0.00973242]
[1763944987557,0.02148118,86945.0,86944.0,0.11419242]
[1763944987764,0.00039387,86946.0,86945.0,0.00973242]
[1763944987978,0.00039387,86946.0,86945.0,0.11419242]
[1763944994217,0.00039387,86946.0,86945.0,0.05080242]
[1763944995053,0.00039387,86946.0,86945.0,0.00973242]
[1763944996020,0.00039387,86946.0,86936.0,0.03176]
[1763944996237,0.323,86945.0,86933.0,0.00973242]
[1763944996480,0.323,86938.0,86932.0,0.00973242]
[1763944996687,0.323,86938.0,86926.0,0.00973242]
[1763944997316,0.323,86938.0,86925.0,0.00973242]
[1763944997317,0.01150284,86935.0,86925.0,0.00973242]
[1763944997533,0.33450364,86929.0,86903.0,0.06339]
[1763944997792,0.323,86919.0,86918.0,0.00973242]
[1763944998229,0.323,86919.0,86918.0,0.11419242]
[1763944998848,0.323,86929.0,86918.0,0.10446]
[1763944999069,0.32339387,86929.0,86928.0,0.00973242]
[1763945000077,0.00039387,86929.0,86928.0,0.00973242]
[1763945000412,0.00039387,86929.0,86928.0,0.01074172]
[1763945001016,0.00039387,86929.0,86928.0,0.0010093]
[1763945001796,2.32339387,86929.0,86928.0,0.0010093]
[1763945004830,2.57059387,86929.0,86928.0,0.0010093]
[1763945005053,2.80066668,86929.0,86928.0,0.0010093]
[1763945005972,2.57059387,86929.0,86928.0,0.0010093]
[1763945006926,2.80066668,86929.0,86928.0,0.0010093]
[1763945007129,2.57059387,86929.0,86928.0,0.0010093]
[1763945009133,2.68581518,86929.0,86928.0,0.0010093]
[1763945009333,0.323,86915.0,86886.0,0.06339]
[1763945009496,0.323,86911.0,86886.0,0.06339]
[1763945009692,2.323,86911.0,86886.0,0.06339]
[1763945011492,2.323,86911.0,86884.0,0.03176]
[1763945011918,2.323,86911.0,86895.0,0.03176]
[1763945012122,2.323,86911.0,86895.0,0.09515]
[1763945012322,2.323,86911.0,86908.0,0.00973242]
[1763945012523,2.323,86911.0,86895.0,0.03176]
[1763945016548,0.2472,86911.0,86895.0,0.03176]
[1763945016748,2.2472,86911.0,86895.0,0.03176]
[1763945016956,2.2472,86911.0,86910.0,0.00096796]
[1763945018531,2.5702,86911.0,86910.0,0.00096796]
[1763945018730,0.323,86898.0,86882.0,0.02822]
[1763945018954,0.323,86891.0,86882.0,0.02822]
[1763945019756,0.323,86891.0,86879.0,0.03176]
[1763945019931,0.00039362,86891.0,86879.0,0.03176]
[1763945021204,0.00039362,86891.0,86880.0,0.05948]
[1763945021589,0.00039362,86891.0,86890.0,0.01013242]
[1763945021833,0.00039362,86891.0,86890.0,0.09811]
[1763945021983,0.00039362,86891.0,86890.0,0.10784242]
[1763945022187,0.00039362,86891.0,86890.0,0.04836242]
[1763945022405,0.00039362,86891.0,86890.0,0.10784242]
[1763945023817,0.03460257,86929.0,86890.0,0.10784242]
[1763945024019,0.33431817,86930.0,86925.0,0.00973242]
[1763945024020,2.0,86928.0,86925.0,0.00973242]
[1763945024217,2.323,86926.0,86925.0,0.00973242]
[1763945024426,0.33431817,86940.0,86925.0,0.06620242]
[1763945024649,2.0,86937.0,86934.0,0.00973242]
[1763945025055,0.00999999,86950.0,86938.0,0.00973242]
[1763945025056,0.03459591,86947.0,86938.0,0.00973242]
[1763945025305,0.08601318,86960.0,86935.0,0.05647]
[1763945025306,2.0,86949.0,86935.0,0.05647]
[1763945025484,2.0,86959.0,86956.0,0.00973242]
[1763945025657,2.0,86959.0,86948.0,0.03999]
[1763945026029,0.33431817,86966.0,86948.0,0.03999]
[1763945026030,0.323,86961.0,86960.0,0.00973242]
[1763945026163,2.0,86961.0,86960.0,0.00973242]
[1763945026361,2.0,86965.0,86960.0,0.00973242]
[1763945026565,0.323,86962.0,86960.0,0.00973242]
[1763945026763,0.323,86960.0,86949.0,0.02875]
[1763945026985,0.323,86958.0,86957.0,0.00973242]
[1763945027185,2.323,86958.0,86957.0,0.00973242]
[1763945027793,2.0,86965.0,86957.0,0.00973242]
[1763945028254,0.323,86962.0,86957.0,0.00973242]
[1763945028461,0.323,86960.0,86957.0,0.00973242]
[1763945028617,2.323,86958.0,86957.0,0.00973242]
[1763945028820,0.01149782,86973.0,86949.0,0.02875]
[1763945028821,0.01805166,86983.0,86965.0,0.03999]
[1763945029028,0.33431817,86990.0,86972.0,0.02875]
[1763945029235,0.33431817,86980.0,86979.0,0.00973242]
[1763945029434,2.0,86984.0,86972.0,0.02875]
[1763945029635,0.11811186,86985.0,86972.0,0.02875]
[1763945029636,2.0,86980.0,86972.0,0.02875]
[1763945029981,0.323,86975.0,86971.0,0.00973242]
[1763945030157,0.323,86973.0,86971.0,0.00973242]
[1763945030718,2.323,86972.0,86971.0,0.00973242]
[1763945030920,0.01149702,86979.0,86949.0,0.02875]
[1763945030921,0.323,86969.0,86960.0,0.02875]
[1763945031127,0.01706867,86984.0,86960.0,0.02875]
[1763945031338,0.323,86969.0,86968.0,0.00973242]
[1763945031737,0.323,86969.0,86968.0,0.04972242]
[1763945032318,0.01706867,86984.0,86968.0,0.04972242]
[1763945032519,2.323,86977.0,86974.0,0.00973242]
[1763945032728,0.323,86975.0,86974.0,0.00973242]
[1763945033145,2.0,86979.0,86974.0,0.00973242]
[1763945034019,2.0,86979.0,86960.0,0.02875]
[1763945034229,2.0,86969.0,86968.0,0.00973242]
[1763945034441,0.33431817,86978.0,86969.0,0.00973242]
[1763945034654,2.0,86978.0,86973.0,0.00973242]
[1763945035082,0.323,86978.0,86964.0,0.05647]
[1763945035292,0.323,86978.0,86977.0,0.00973242]
[1763945035967,0.323,86973.0,86965.0,0.00973242]
[1763945036172,0.323,86969.0,86965.0,0.00973242]
[1763945036381,0.323,86969.0,86949.0,0.02875]
[1763945036587,0.323,86958.0,86957.0,0.00973242]
[1763945036970,0.323,86958.0,86951.0,0.00973242]
[1763945038046,0.01149914,86963.0,86951.0,0.00973242]
[1763945038258,0.01149993,86957.0,86951.0,0.00973242]
[1763945038457,0.01149993,86957.0,86943.0,0.00973242]
[1763945038660,0.323,86949.0,86943.0,0.00973242]
[1763945039818,0.323,86949.0,86948.0,0.00973242]
[1763945040028,2.323,86944.0,86943.0,0.00011794]
[1763945040243,0.323,86944.0,86943.0,0.00011794]
[1763945041103,0.323,86944.0,86943.0,0.10631036]
[1763945043019,0.0345857,86966.0,86963.0,0.00973242]
[1763945043020,2.323,86964.0,86963.0,0.00973242]
[1763945043472,2.323,86964.0,86963.0,0.06620242]
[1763945043694,2.323,86964.0,86963.0,0.04972242]
[1763945043903,0.2472,86968.0,86955.0,0.03018]
[1763945044111,0.2472,86968.0,86967.0,0.04992242]
[1763945044324,0.323,86978.0,86967.0,0.04019]
[1763945044529,0.323,86977.0,86976.0,0.00973242]
[1763945044753,0.03457796,86986.0,86979.0,0.04019]
[1763945044958,0.48997992,86990.0,86982.0,0.00973242]
[1763945044959,2.0,86983.0,86982.0,0.00973242]
[1763945045135,2.323,86983.0,86982.0,0.00973242]
[1763945045583,2.323,86982.0,86981.0,0.00973242]
[1763945046001,2.323,86982.0,86981.0,0.04992242]
[1763945046216,0.323,86982.0,86981.0,0.04992242]
[1763945046918,0.00039387,86983.0,86982.0,0.00973242]
[1763945047125,0.00039387,86983.0,86982.0,0.04992242]
[1763945047361,0.00039387,86983.0,86982.0,0.10475242]
[1763945050893,0.26692811,87020.0,87010.0,0.00973242]
[1763945051211,0.323,87017.0,87016.0,0.00973242]
[1763945051682,0.323,87017.0,87016.0,0.03991242]
[1763945052073,0.00069299,87017.0,87016.0,0.03991242]
[1763945052493,0.00069299,87017.0,87016.0,0.08010242]
[1763945053538,2.3410306,87017.0,87010.0,0.00011794]
[1763945053768,0.323,87013.0,87010.0,0.00985036]
[1763945053977,0.323,87013.0,87012.0,0.00973242]
[1763945054364,0.32356701,87013.0,87012.0,0.00973242]
[1763945055255,0.00056701,87013.0,87012.0,0.04992242]
[1763945055458,0.00056701,87013.0,87012.0,0.10475242]
[1763945055887,2.00056701,87013.0,87010.0,0.00011794]
[1763945056095,2.323,87011.0,87010.0,0.00011794]
[1763945056507,0.323,87011.0,87010.0,0.05004036]
[1763945056744,0.323,87011.0,87010.0,0.10487036]
[1763945057153,0.01716166,87017.0,87010.0,0.10487036]
[1763945057370,0.01716166,87017.0,87016.0,0.03991242]
[1763945057583,2.0,87029.0,87016.0,0.07037]
[1763945057786,2.0,87029.0,87028.0,0.03991242]
[1763945057999,2.33994374,87029.0,87028.0,0.03991242]
[1763945058210,0.0002,87030.0,87028.0,0.1252]
[1763945058421,0.0002,87030.0,87029.0,0.10475242]
[1763945058905,2.0,87029.0,87010.0,0.00011794]
[1763945059110,0.0002,87030.0,87010.0,0.00011794]
[1763945059111,0.323,87019.0,87016.0,0.03018]
[1763945059318,0.323,87017.0,87016.0,0.03018]
[1763945059968,0.323,87017.0,87015.0,0.00973242]
[1763945060178,0.323,87013.0,87010.0,0.00011794]
[1763945061205,0.50147153,87020.0,87010.0,0.00011794]
[1763945061206,2.0,87019.0,87010.0,0.00011794]
[1763945061399,0.00050402,87011.0,87010.0,0.00011794]
[1763945063139,0.00050402,87011.0,87010.0,0.10487036]
[1763945063764,0.0002,87030.0,87010.0,0.09513794]
[1763945063982,0.0002,87030.0,87029.0,0.08010242]
[1763945064351,0.0002,87030.0,87029.0,0.13493242]
[1763945064770,0.0002,87030.0,87029.0,0.03018]
[1763945065002,0.0002,87030.0,87029.0,0.03991242]
[1763945065193,2.3232,87030.0,87029.0,0.00973242]
[1763945065762,2.3232,87030.0,87010.0,0.00011794]
[1763945065763,0.323,87029.0,87010.0,0.00011794]
[1763945065962,2.0,87026.0,87021.0,0.00973242]
[1763945066162,0.323,87027.0,87016.0,0.03018]
[1763945066436,0.323,87027.0,87026.0,0.04992242]
[1763945066950,0.0002,87030.0,87029.0,0.00973242]
[1763945067151,0.0002,87030.0,87029.0,0.10475242]
[1763945068684,0.0002,87030.0,87010.0,0.00011794]
[1763945068685,0.01149213,87016.0,87010.0,0.00011794]
[1763945068892,0.323,87018.0,87010.0,0.00985036]
[1763945069098,2.0,87015.0,87010.0,0.00985036]
[1763945069303,0.323,87012.0,87010.0,0.00985036]
[1763945069928,2.69239023,87011.0,87010.0,0.00011794]
[1763945070149,2.34442238,87011.0,87010.0,0.00011794]
[1763945070362,2.323,87011.0,87010.0,0.00985036]
[1763945070765,2.34442612,87011.0,87010.0,0.00985036]
[1763945071213,2.34442612,87011.0,87010.0,0.00011794]
[1763945071868,0.0002,87030.0,87029.0,0.00973242]
[1763945072086,0.0002,87030.0,87029.0,0.10475242]
[1763945075925,0.0002,87030.0,87029.0,0.10459715]
[1763945077428,0.0002,87030.0,87029.0,0.3417256]
[1763945077636,0.0002,87060.0,87031.0,0.24129206]
[1763945077853,0.0002,87060.0,87059.0,0.06617715]
[1763945079101,0.0002,87060.0,87059.0,0.06629509]
[1763945079704,0.0002,87060.0,87059.0,0.00969509]
[1763945080957,2.3232,87060.0,87059.0,0.00011794]
[1763945081184,2.41893,87060.0,87059.0,0.00011794]
[1763945082060,2.36288,87060.0,87059.0,0.00011794]
[1763945082391,2.36442257,87060.0,87059.0,0.00011794]
[1763945082780,2.42047257,87060.0,87059.0,0.00011794]
[1763945083075,2.32474257,87060.0,87059.0,0.00011794]
[1763945083276,2.32474257,87060.0,87059.0,0.00969509]
[1763945083531,0.32474257,87060.0,87059.0,0.00969509]
[1763945084128,0.36116257,87060.0,87059.0,0.00969509]
[1763945084331,0.32474257,87060.0,87059.0,0.00969509]
[1763945085299,0.32474257,87060.0,87059.0,0.04571509]
[1763945085515,0.32474257,87060.0,87059.0,0.00969509]
[1763945089253,0.32474257,87060.0,87059.0,0.10208509]
[1763945089607,0.41803257,87060.0,87059.0,0.00011794]
[1763945089810,2.41803257,87060.0,87059.0,0.00011794]
[1763945090840,0.32474257,87060.0,87059.0,0.00969509]
[1763945092005,0.36116257,87060.0,87059.0,0.00969509]
[1763945092203,0.41803257,87060.0,87059.0,0.00969509]
[1763945092356,0.36116257,87060.0,87059.0,0.00969509]
[1763945092560,0.32474257,87060.0,87059.0,0.00969509]
[1763945093750,0.00154257,87060.0,87059.0,0.00969509]
[1763945094432,2.0,87069.0,87060.0,0.00957715]
[1763945095702,0.03642,87061.0,87059.0,0.00011794]
[1763945095857,0.323,87065.0,87059.0,0.00011794]
[1763945096063,0.323,87061.0,87059.0,0.00011794]
[1763945096284,2.85942,87060.0,87059.0,0.00011794]
[1763945096519,2.41629,87060.0,87059.0,0.00011794]
[1763945096704,0.35942,87060.0,87059.0,0.00969509]
[1763945098007,2.41629,87060.0,87059.0,0.00011794]
[1763945098213,2.35942,87060.0,87059.0,0.00011794]
[1763945099115,2.41629,87060.0,87059.0,0.00011794]
[1763945099520,2.35942,87060.0,87059.0,0.00011794]
[1763945099940,2.41629,87060.0,87059.0,0.00011794]
[1763945100502,0.35942,87060.0,87059.0,0.00011794]
[1763945100714,0.323,87060.0,87059.0,0.00969509]
[1763945101339,0.00025176,87068.0,87059.0,0.00969509]
[1763945101550,0.323,87065.0,87061.0,0.00957715]
[1763945101759,0.323,87061.0,87059.0,0.00011794]
[1763945101962,2.3809746,87060.0,87059.0,0.00011794]
[1763945102343,2.4378446,87060.0,87059.0,0.00011794]
[1763945103404,0.22984019,87017.0,86983.0,0.14330336]
[1763945103610,0.0114957,86989.0,86968.0,0.08349]
[1763945103811,0.01149768,86974.0,86972.0,0.00957715]
[1763945103990,0.01149768,86974.0,86968.0,0.00039387]
[1763945103991,2.02498,86973.0,86968.0,0.00039387]
[1763945104252,0.48997992,86978.0,86976.0,0.00957715]
[1763945104253,0.323,86977.0,86976.0,0.00957715]
[1763945105277,2.0,86984.0,86975.0,0.02972]
[1763945105494,0.323,86985.0,86975.0,0.02972]
[1763945105700,2.323,86985.0,86984.0,0.00957715]
[1763945106118,0.323,86985.0,86984.0,0.00957715]
[1763945106299,0.3340306,87010.0,86984.0,0.09237]
[1763945106603,2.0,87013.0,86984.0,0.09237]
[1763945106604,0.323,87012.0,87008.0,0.00957715]
[1763945106790,2.323,87009.0,87008.0,0.00957715]
[1763945106986,2.36119,87009.0,87008.0,0.00957715]
[1763945107390,2.34041143,87009.0,87008.0,0.00957715]
[1763945107749,2.34041143,87009.0,87008.0,0.00969525]
[1763945108163,2.43587143,87009.0,87008.0,0.0001181]
[1763945109688,2.6657327,87009.0,87008.0,0.0001181]
[1763945110889,2.68710963,87009.0,87008.0,0.0001181]
[1763945111643,0.323,86970.0,86968.0,0.00957715]
[1763945111863,0.02498,86969.0,86968.0,0.00997102]
[1763945112466,0.323,86970.0,86968.0,0.00997102]
[1763945112675,0.323,86977.0,86969.0,0.00957715]
[1763945112852,0.323,86977.0,86976.0,0.00957715]
[1763945113636,0.45076,86977.0,86976.0,0.00957715]
[1763945113837,2.323,86969.0,86968.0,0.00039387]
[1763945113971,2.3583,86969.0,86968.0,0.00039387]
[1763945114364,2.41557,86969.0,86968.0,0.00039387]
[1763945115704,0.323,86969.0,86968.0,0.00997102]
[1763945116117,0.323,86969.0,86968.0,0.01145229]
[1763945116318,0.323,86969.0,86968.0,0.04741229]
[1763945116699,0.323,86969.0,86968.0,0.01145229]
[1763945117321,0.323,86969.0,86968.0,0.04741229]
[1763945117513,0.323,86969.0,86968.0,0.10382229]
[1763945118463,2.0,86979.0,86978.0,0.00957715]
[1763945118884,2.0,86987.0,86983.0,0.00957715]
[1763945119589,2.0,86987.0,86983.0,0.05641]
[1763945119708,2.0,86994.0,86993.0,0.00957715]
[1763945119922,2.0,86999.0,86998.0,0.00957715]
[1763945120567,2.03819,86999.0,86982.0,0.02972]
[1763945120719,0.00250566,86986.0,86985.0,0.00957715]
[1763945121163,0.00250566,86986.0,86985.0,0.00969528]
[1763945121919,0.00250566,86986.0,86985.0,0.10206528]
[1763945122326,2.04069566,86986.0,86985.0,0.00011813]
[1763945122538,2.44229144,86986.0,86985.0,0.00011813]
[1763945123183,2.68949144,86986.0,86985.0,0.00011813]
[1763945123809,0.323,86960.0,86953.0,0.00957715]
[1763945124199,0.323,86960.0,86959.0,0.00176509]
[1763945124403,2.34433635,86960.0,86959.0,0.01134224]
[1763945125438,2.38252635,86960.0,86959.0,0.01134224]
[1763945125642,2.43979635,86960.0,86959.0,0.00176509]
[1763945128583,0.34433635,86960.0,86959.0,0.01134224]
[1763945128795,0.02133635,86960.0,86959.0,0.04106224]
[1763945128995,0.02133635,86960.0,86959.0,0.13343224]
[1763945129932,0.323,86969.0,86959.0,0.13343224]
[1763945130140,0.2472,86986.0,86985.0,0.00957715]
[1763945130367,0.02140223,86986.0,86985.0,0.07525715]
[1763945130586,0.02140223,86986.0,86985.0,0.03929715]
[1763945130821,0.02140223,86986.0,86985.0,0.13166715]
[1763945131535,0.02140223,86986.0,86985.0,0.13178531]
[1763945131750,2.0,87009.0,86985.0,0.13178531]
[1763945131956,0.01804327,87016.0,87015.0,0.00957715]
[1763945132182,2.02142384,87016.0,87015.0,0.00957715]
[1763945132598,2.02142384,87016.0,87015.0,0.10194715]
[1763945132799,0.02142384,87016.0,87015.0,0.10194715]
[1763945133034,0.0180428,87019.0,87018.0,0.00957715]
[1763945133215,0.0180428,87019.0,87001.0,0.0195]
[1763945133216,0.03948811,87019.0,87015.0,0.00011816]
[1763945133335,0.03948811,87019.0,87018.0,0.00957715]
[1763945133336,0.0180428,87019.0,87018.0,0.00957715]
[1763945133534,0.03950043,87019.0,87018.0,0.00957715]
[1763945135005,0.36250043,87019.0,87018.0,0.00957715]
[1763945135161,0.36250043,87019.0,87015.0,0.00011816]
[1763945135162,0.01149187,87018.0,87015.0,0.00011816]
[1763945135362,2.55284278,87016.0,87015.0,0.00011816]
[1763945135580,2.34445763,87016.0,87015.0,0.00011816]
[1763945136617,2.33455763,87016.0,87015.0,0.00011816]
[1763945136848,2.42181763,87016.0,87015.0,0.00011816]
[1763945138331,2.66901763,87016.0,87015.0,0.00011816]
[1763945139307,2.61631763,87016.0,87015.0,0.00011816]
[1763945139522,2.58175763,87016.0,87015.0,0.00969531]
[1763945139724,2.26865763,87016.0,87015.0,0.00969531]
[1763945140121,2.26865763,87016.0,87015.0,0.09852531]
[1763945140122,2.02145763,87016.0,87015.0,0.09852531]
[1763945140389,0.02145763,87016.0,87015.0,0.09852531]
[1763945140885,0.02145763,87016.0,87015.0,0.04486531]
[1763945142098,0.02145763,87016.0,87015.0,0.00969531]
[1763945143419,0.02145763,87016.0,87015.0,0.10070531]
[1763945144224,2.323,87022.0,87021.0,0.00957715]
[1763945144579,2.36244654,87022.0,87021.0,0.00957715]
[1763945144780,0.36244654,87022.0,87021.0,0.00957715]
[1763945144938,0.34440925,87022.0,87021.0,0.00957715]
[1763945145326,0.02140925,87022.0,87021.0,0.00957715]
[1763945145781,0.323,87024.0,87021.0,0.00957715]
[1763945145970,0.323,87021.0,87015.0,0.00969531]
[1763945146170,2.35933,87016.0,87015.0,0.00969531]
[1763945146372,0.38073876,87016.0,87015.0,0.00011816]
[1763945147343,0.43228876,87016.0,87015.0,0.00011816]
[1763945147696,2.43229137,87016.0,87015.0,0.00011816]
[1763945147915,2.67949137,87016.0,87015.0,0.00011816]
[1763945148833,2.67449137,87016.0,87015.0,0.00011816]
[1763945150419,0.55286392,87008.0,87007.0,0.00025202]
[1763945150628,0.0114961,86986.0,86977.0,0.00957715]
[1763945150830,0.03748251,86978.0,86977.0,0.00969532]
[1763945151041,0.00115251,86978.0,86977.0,0.00969532]
[1763945152895,0.08903251,86978.0,86977.0,0.00011817]
[1763945153095,2.91203251,86978.0,86977.0,0.00011817]
[1763945153332,2.41203251,86978.0,86977.0,0.00011817]
[1763945153503,2.43345781,86978.0,86977.0,0.00011817]
[1763945155138,2.38190781,86978.0,86977.0,0.00011817]
[1763945155338,2.43345781,86978.0,86977.0,0.00011817]
[1763945155988,2.29474079,86978.0,86977.0,0.00011817]
[1763945156783,2.29474079,86978.0,86977.0,0.0010636]
[1763945158742,2.27331549,86978.0,86977.0,0.0010636]
[1763945158968,2.29476477,86978.0,86977.0,0.0010636]
[1763945159148,2.54196477,86978.0,86977.0,0.0010636]
[1763945159669,0.01149834,86969.0,86960.0,0.00957715]
[1763945159882,0.323,86965.0,86960.0,0.00997102]
[1763945160012,0.323,86965.0,86960.0,0.00039387]
[1763945160211,0.323,86965.0,86964.0,0.00957715]
[1763945160505,0.323,86961.0,86960.0,0.00039387]